Cogmind - Beta 10.2 @@@ ROGUE MODE // 2020.12.18 @ 08:44:18 Player: sweetandcool Result: Destroyed by DAS Turret with DAS Cannon Performance ------------- Evolutions (0) 0 Regions Visited (3) 600 Robots Destroyed (18) 90 Value Destroyed (220) 220 Prototype IDs (25) 500 Alien Tech Used (0) 0 Bonus (300) 300 TOTAL SCORE: 1710 Bonus ------- Aligned with FarCom 300 Cogmind --------- Core Integrity 0/250 Matter 287/300 Energy 100/100 System Corruption 0% Temperature Cool (0) Movement Core (50) Location -10/Exiles Parts ------- > --- POWER (1) -------- (None) > --- PROPULSION (2) --- (None) > --- UTILITY (2) ------ (None) > --- WEAPON (2) ------- (None) > --- INVENTORY (4) ---- Flying Fortress v7 Peak State ------------ > --- POWER ------------ Light Ion Engine > --- PROPULSION ------- Light Treads Light Treads > --- UTILITY ---------- Lightpack 2.0 > --- WEAPON ----------- Heavy Particle Cannon Assault Rifle > --- INVENTORY -------- Light Ion Engine Light Nuclear Core Light Treads Flying Fortress v7 Small Storage Unit Small Storage Unit Superbattery Hardened Light Armor Plating Hardened Light Armor Plating Hardened Light Armor Plating Hardened Light Armor Plating Improved Grenade Launcher [Rating: 33] Favorites ----------- Power Light Ion Engine Engine Light Ion Engine Propulsion Light Treads Treads Light Treads Utility Small Storage Unit Storage Small Storage Unit Weapon Assault Rifle Energy Gun Medium Laser Energy Cannon Heavy Particle Cannon Ballistic Gun Assault Rifle Build | -11 -10 -10 -10 ------- Run | Scr Mat Min Exi Slots Evolved . | . . . . Power . | . . . . Propulsion . | . . . . Utility . | . . . . Weapon . | . . . . Parts Attached 14 | 7 3 3 1 Power 2 | 1 1 . . Engine 2 | 1 1 . . Core . | . . . . Reactor . | . . . . Propulsion 4 | 2 1 1 . Treads 4 | 2 1 1 . Leg . | . . . . Wheel . | . . . . Hover . | . . . . Flight . | . . . . Utility 3 | 2 . . 1 Device . | . . . . Storage 3 | 2 . . 1 Processor . | . . . . Hackware . | . . . . Protection . | . . . . Artifact . | . . . . Weapon 5 | 2 1 2 . Energy Gun 2 | 2 . . . Energy Cannon 1 | . . 1 . Ballistic Gun 2 | . 1 1 . Ballistic Cannon . | . . . . Launcher . | . . . . Special Weapon . | . . . . Impact Weapon . | . . . . Slashing Weapon . | . . . . Piercing Weapon . | . . . . Special Melee Weapon . | . . . . Unidentified Prototypes . | . . . . Parts Lost 4 | . 1 1 2 Power . | . . . . Propulsion 1 | . . . 1 Utility . | . . . . Weapon 3 | . 1 1 1 Highest Loss Streak 2 | . 1 1 2 Average Slot Usage (%) 94 | . 99 98 87 Engine 13 | . 14 14 13 Treads 27 | . 28 28 26 Storage 24 | . 28 28 19 Energy Gun 8 | . 21 . . Energy Cannon 6 | . . 3 13 Ballistic Gun 12 | . 6 22 13 Naked Turns 13 | . . . 13 Heaviest Build 19 | 17 17 19 19 Greatest Support 40 | 40 40 40 40 Greatest Overweight (x) 1 | 1 . . . Average Overweight (x) . | . . . . Largest Inventory Capacity 24 | 8 8 8 24 Average Capacity 10 | 6 8 8 16 Most Carried 15 | 4 8 8 15 Average Carried 8 | 1 7 7 11 Final Capacity 8 | 8 8 8 4 Final Carried 8 | 4 8 8 4 Class Distribution -------------------- 68% | Mutant 18% | Hauler-Mutant 13% | Scavenger-Mutant Dominant Class ---------------- Mutant | -10/Materials Scavenger-Mutant | -10/Mines Hauler-Mutant | -10/Exiles Resources | -11 -10 -10 -10 ----------- Run | Scr Mat Min Exi Matter Collected 411 | 270 66 75 . Remotely . | . . . . Salvage Created 498 | 76 382 40 . Parts 35 | 8 23 4 . Haulers Intercepted 2 | . 2 . . Recyclers Shooed 3 | . 3 . . Parts Field Recycled . | . . . . Retrieved Matter . | . . . . Parts Self-Destructed . | . . . . Prevented . | . . . . Kills | -11 -10 -10 -10 ------- Run | Scr Mat Min Exi Combat Hostiles Destroyed 11 | . 8 3 . Guns 10 | . 7 3 . AOE 1 | . 1 . . Classes Destroyed 7 | 2 5 . . Tunneler 1 | 1 . . . Hauler 2 | . 2 . . Recycler 2 | 1 1 . . Mechanic 1 | . 1 . . Watcher 1 | . 1 . . Swarmer 9 | . 6 3 . Grunt 2 | . 2 . . Best Kill Streak 4 | 1 4 3 . Combat Bots Only 3 | . 3 3 . Max Kills in Single Turn 2 | 1 2 1 . Gunslinging 1 | . 1 . . Exploded 1 | . 1 . . Melee . | . . . . Uniques/NPCs Destroyed . | . . . . Combat | -11 -10 -10 -10 -------- Run | Scr Mat Min Exi Damage Taken 990 | . 210 287 493 Core 300 | . 22 51 227 Absorbed by Shields . | . . . . Core Remaining (%) 100 | 100 . . . Volleys Fired 56 | 3 31 18 4 Largest 2 | 2 2 2 2 Hottest 100 | 100 100 70 95 Shots Fired 91 | 6 57 21 7 Gun 87 | 6 57 21 3 Cannon 4 | . . . 4 Launcher . | . . . . Special . | . . . . Kinetic 33 | . 12 18 3 Thermal 58 | 6 45 3 4 Explosive . | . . . . Electromagnetic . | . . . . Robot Hit Streak 13 | 4 13 3 1 Robot Miss Streak 7 | . 5 7 2 Penetration Max . | . . . . Secondary Targets 1 | . 1 . . Max Gunslinging Chain 1 | . 1 . . Shots Hit Robots 44 | 4 31 7 2 Core Hits 25 | 3 19 3 . Critical Hits . | . . . . Critical Kills . | . . . . Critical Parts Destroyed . | . . . . Melee Attacks . | . . . . Impact . | . . . . Slashing . | . . . . Piercing . | . . . . Sneak Attacks . | . . . . Combat Hostiles . | . . . . Follow-up Attacks . | . . . . Damage Inflicted 826 | 49 629 123 25 Guns 531 | 49 359 123 . Cannons 25 | . . . 25 Explosions 270 | . 270 . . Melee . | . . . . Ramming . | . . . . Kinetic 179 | . 69 110 . Thermal 647 | 49 560 13 25 Explosive . | . . . . Electromagnetic . | . . . . Impact . | . . . . Slashing . | . . . . Piercing . | . . . . Highest Corruption . | . . . . Average Corruption . | . . . . Corruption Purged . | . . . . Overload Shots . | . . . . Overflow Damage 90 | . 90 . . Projectiles . | . . . . Explosions 90 | . 90 . . Melee . | . . . . Knockbacks . | . . . . Impact . | . . . . Kinetic . | . . . . Secondary . | . . . . Self-Inflicted Damage . | . . . . Shots . | . . . . Rammed . | . . . . Targets Rammed . | . . . . Kicked . | . . . . Crushed . | . . . . Highest Temperature 259 | 78 259 27 219 Average Temperature 66 | 33 69 14 99 Received Heat Transfer 256 | . 96 . 160 Effects 2 | . 2 . . Interference 2 | . 2 . . Siege Activations . | . . . . Robots Corrupted . | . . . . Combat Hostiles . | . . . . Parts Fried . | . . . . Impact Corruptions . | . . . . Robots Melted . | . . . . Combat Hostiles . | . . . . Parts Melted 1 | . 1 . . Heat Transferred 1223 | 148 1001 37 37 Parts Sabotaged . | . . . . Parts Stolen . | . . . . Parts Stripped . | . . . . Power Chain Reactions . | . . . . Missiles Intercepted . | . . . . Alert | -11 -10 -10 -10 ------- Run | Scr Mat Min Exi Peak Influence 282 | 10 282 184 . Initial 109 | . 6 109 . Average 155 | 4 179 176 . Maximum Alert Level 1 | . 1 . . Low Security (%) 73 | 100 50 100 . Level 1 26 | . 49 . . Level 2 . | . . . . Level 3 . | . . . . Level 4 . | . . . . Level 5 . | . . . . High Security . | . . . . Max Security . | . . . . Squads Dispatched 2 | . 1 1 . Investigation 1 | . . 1 . Extermination . | . . . . Reinforcement 1 | . 1 . . Assault . | . . . . Garrison . | . . . . Intercept . | . . . . Construction Impeded . | . . . . Haulers Reinforced . | . . . . Stealth | -11 -10 -10 -10 --------- Run | Scr Mat Min Exi Distress Signals . | . . . . Communications Jammed . | . . . . Distress Signals . | . . . . Times Spotted 29 | . 18 3 8 Peak Tracking Total 9 | . 4 3 9 Tactical Retreats 1 | . 1 . . Traps | -11 -10 -10 -10 ------- Run | Scr Mat Min Exi Traps Triggered . | . . . . Indirectly . | . . . . Trap Hack Attempts . | . . . . Triggered . | . . . . Disarmed . | . . . . Reprogrammed . | . . . . Reused . | . . . . Traps Extracted . | . . . . Installed . | . . . . Triggered . | . . . . Machines | -11 -10 -10 -10 ---------- Run | Scr Mat Min Exi Machines Disabled 4 | . 1 . 3 Max in Single Turn 1 | . 1 . 1 Machines Sabotaged . | . . . . Garrisons Compromised . | . . . . Overloaded Fab Kills . | . . . . Fab Network Shutdowns . | . . . . Hacking | -11 -10 -10 -10 --------- Run | Scr Mat Min Exi Machines Accessed 4 | . 2 1 1 Terminals 2 | . 2 . . Fabricators . | . . . . Repair Stations . | . . . . Recycling Units . | . . . . Scanalyzers . | . . . . Garrison Access . | . . . . Total Hacks 8 | . 6 1 1 Successful 5 | . 3 1 1 Failed 3 | . 3 . . Catastrophic 1 | . 1 . . Database Lockouts . | . . . . Manual 6 | . 5 . 1 Terminals 6 | . 6 . . Fabricators . | . . . . Repair Stations . | . . . . Recycling Units . | . . . . Scanalyzers . | . . . . Garrison Access . | . . . . Terminal Hacks 5 | . 3 1 1 Part Schematic 1 | . 1 . . Prototype ID Bank 1 | . 1 . . Open Door 1 | . . 1 . Branch Access Points 1 | . 1 . . EX-Prototype ID Bank 1 | . . . 1 Fabricator Hacks . | . . . . Repair Station Hacks . | . . . . Recycling Unit Hacks . | . . . . Scanalyzer . | . . . . Garrison Access Hacks . | . . . . Unauthorized Hacks . | . . . . Terminals . | . . . . Fabricators . | . . . . Repair Stations . | . . . . Recycling Units . | . . . . Scanalyzers . | . . . . Garrison Access . | . . . . Data Cores Recovered . | . . . . Used . | . . . . Hacking Detections 2 | . 2 . . Full Trace Events . | . . . . Feedback Events . | . . . . Feedback Blocked . | . . . . Robot Schematics Acquired . | . . . . Robots Built . | . . . . Matter . | . . . . Time . | . . . . Total Robot Build Rating . | . . . . Part Schematics Acquired 1 | . 1 . . Parts Built . | . . . . Matter . | . . . . Time . | . . . . Total Part Build Rating . | . . . . Parts Repaired . | . . . . Time . | . . . . Parts Recycled . | . . . . Recycled Matter . | . . . . Retrieved Matter . | . . . . Retrieved Components . | . . . . Parts Scanalyzed . | . . . . Part Schematics Acquired . | . . . . Parts Damaged . | . . . . Bothacking | -11 -10 -10 -10 ------------ Run | Scr Mat Min Exi Used RIF Installer . | . . . . Robots Hacked . | . . . . Non-combat . | . . . . Combat . | . . . . Robot Hacks Applied . | . . . . Relay Couplers Released . | . . . . Robots Rewired . | . . . . Allies Hacked . | . . . . Hacks Repelled . | . . . . Allies | -11 -10 -10 -10 -------- Run | Scr Mat Min Exi Total Allies . | . . . . Largest Group . | . . . . Highest-Rated Group . | . . . . Highest-Rated Ally . | . . . . Total Orders . | . . . . Ally Attacks . | . . . . Total Damage . | . . . . Kills . | . . . . Allies Corrupted . | . . . . Allies Melted . | . . . . Intel | -11 -10 -10 -10 ------- Run | Scr Mat Min Exi Robot Analysis Total . | . . . . Derelict Logs Recovered . | . . . . Drone Launches . | . . . . Drone Recoveries . | . . . . Exploration | -11 -10 -10 -10 ------------- Run | Scr Mat Min Exi Turns Passed 1142 | 97 394 246 405 Spaces Moved 594 | 49 166 124 255 Core 30 | 5 . . 25 Treads 564 | 44 166 124 230 Legs . | . . . . Wheels . | . . . . Hover . | . . . . Flight . | . . . . Fastest Speed 50 | 50 160 160 50 Average Speed 154 | 151 160 160 149 Slowest Speed 160 | 160 160 160 160 Overloaded Moves . | . . . . Propulsion Burnouts . | . . . . Robots Hopped . | . . . . Cave-ins Triggered . | . . . . Exploration Rate (%) 32 | 5 33 36 57 Regions Visited 3 Branch Regions 2 Pre-discovered Areas . | . . . . Known Exits Taken 1 | . 1 . . Unknown Exits Taken 2 | 1 . 1 . Scrap Searched . | . . . . Spaces Dug . | . . . . Terrain Destroyed 19 | . 19 . . Melee . | . . . . Projectile . | . . . . AOE 19 | . 19 . . Terrain Rammed . | . . . . Walls Destroyed . | . . . . Machines Disabled . | . . . . Actions | -11 -10 -10 -10 --------- Run | Scr Mat Min Exi Total 726 | 62 239 151 274 Wait 32 | . 32 . . Move 591 | 48 165 123 255 Hop . | . . . . Pick Up 21 | 4 6 3 8 Fast Attach 10 | 7 . 2 1 Attach 1 | . 1 . . Detach . | . . . . Swap 3 | . 2 1 . Drop 12 | . 2 4 6 Fire 56 | 3 31 18 4 Melee . | . . . . Ram . | . . . . Kick . | . . . . Crush . | . . . . Escape Stasis . | . . . . Rewire . | . . . . Trap . | . . . . Miscellaneous . | . . . . Route ------- -11/Scrapyard -10/Materials (discovered 2 exits: *Min x2) -10/Mines (discovered 2 exits: [*Mat] / *Exi) -10/Exiles History --------- Turn | Location | Event 21 | -11/Scrapyard | Discovered new exit (range 15) 98 | -11/Scrapyard | Entered Materials 325 | -10/Materials | Build established: Mutant 404 | -10/Materials | Identified exit to Mines 492 | -10/Materials | Entered Mines 662 | -10/Mines | Met a Derelict shopkeep closing up shop 709 | -10/Mines | Discovered new exit (range 6) 730 | -10/Mines | Deemed a non-threat by the Exiles lab entrance 731 | -10/Mines | Discovered new exit (range 5) 738 | -10/Mines | Entered Exiles 782 | -10/Exiles | Met 8R-AWN 801 | -10/Exiles | Met EX-HEX 850 | -10/Exiles | Met EX-BIN 870 | -10/Exiles | Aligned with FarCom system 871 | -10/Exiles | Given EX-Vault access code 908 | -10/Exiles | Opened EX-Vault 920 | -10/Exiles | Found Lightpack 2.0 941 | -10/Exiles | Found Flying Fortress v7 945 | -10/Exiles | Found Superbattery 979 | -10/Exiles | Warned to stay clear of 0b10 Research branches 1023 | -10/Exiles | Met EX-DEC 1116 | -10/Exiles | Attacked by the Exiles 1131 | -10/Exiles | Core integrity fell below 50% 1135 | -10/Exiles | Core integrity fell below 20% 1143 | -10/Exiles | Destroyed by DAS Turret with DAS Cannon Last Messages --------------- 01127_ Penetrated by HV Slug. 01127_ HV Slug penetrates Machine. 01127_ Machine disabled. 01127_ Penetrated by HV Slug. 01127_ Critical hit. 01127_ Hvy. Particle Cannon destroyed. 01127_ HV Slug penetrates Machine. 01128_ Dropped Lgt. Treads. 01128_ Lgt. Treads destroyed. 01129_ Dropped Assault Rifle. 01129_ Dropped Lgt. Ion Engine. 01130_ Dropped Lightpack 2.0. 01130_ Penetrated by HV Slug. 01130_ HV Slug penetrates Machine. 01130_ HV Slug penetrates Wall. 01134_ Penetrated by HV Slug. 01134_ HV Slug penetrates Wall. 01134_ Penetrated by HV Slug. 01134_ HV Slug penetrates Wall. 01136_ Penetrated by HV Slug. Map ----- +----------------------------------------------------+ | ????????????????????#" ## #??????????????? | | ????????????????????#""""""?# #?#########????? | | ????????????????????##"###??# #?#"""""""#????? | | ????????????????????????????# #?#"""""""#????? | | ????????????????????????????# #?#"""""""#????? | | ???????????????????????????## ###"" """"#????? | | ???????????????????????????#" """"#????? | | ???????????????????????????#" """#????? | | ???????????????????????????#" """#????? | | ???????????????????????????#" """#????? | | ???????????????????????????#" """#????? | | ???????????????????????????#" """#????? | | ???????????????????????????## """"????? | | ????????????????????????????# """#????? | | ????????????????????????????#" "X" """"????? | | ????????????????????????????#" """ #????? | | ?????????????? ?????????????#" """""""""#????? | | ??????????????" ??????????##" ###########????? | | ??????????????# ?????????##"" #??????????????? | | ????????????### ##??######"" #??????????????? | | ????????#####X# #"###""""""" ##?????????????? | | ??????? """""" " "" ##???########## | | ??????? "" """ " #####" """"""" | | ?????? " " " "" """ | | ?????? a " | | ????? @ aaa !" | | ????? a a a ]" | | ?????# **[ | | ??????#" !*= | | ??????#""" """""" !! | | ??????#" ######""" | | ??????"" ""##????#####""" | | ??????""" """##?????????##""" | | ??????"" """##???????????#""" | | ??????"" ""#???????????##" | | ?????"" ########??####"""" | | ?????""" ## ####""" | | ?????"" """" | | ?????#"" | | ??????"""" | | ??????# " | | ??????#" " "" """ | | ???????"""" ""## ##""" " " ""#" | | ???????"" ""#### ######""" """##""" | | ???????? """"##??# #????###""""###### | | ???????""" """#???# #??????######????? | | ???????? ""##???! ????????????????? | | ????????"" """##???#" ???????????????? | | ?????????""" #?????#" ???????????????? | | ???????????""" #??????#!!""!"??????????????? | +----------------------------------------------------+ Best States ------------- Heat Dissipation 25 Energy Generation 10 Energy Capacity 250 Matter Stores 300 Matter Capacity 300 Sight Range 16 Terrain Scan Density 10 Evasion (%) 50 Recoil Reduction 2 Item Schematics ----------------- Lrg. Storage Unit | -10/Materials | Hacked Robot Schematics ------------------ None Fabricated ------------ Nothing Alien Tech Used ----------------- None Achievements -------------- None Challenges ------------ None Game ------ Seed mappinglightningengine Manual? 1 Play Time 00:15:51 Cumulative 109.3 hours Start 2020.12.18 @ 08:31:22 End 2020.12.18 @ 08:44:18 Sessions 1 Manual Loads 0 Difficulty Rogue Special Mode None Game No. 76 Rogue 76 Adventurer 0 Explorer 0 Win Type - Total 0 Types 0/0/0/0/0/0/0/0/0 Lore% 59 Gallery% 61 Achievement% 52 Wizard Run 0 Options --------- ASCII 0 Keyboard 0 Movement Numpad Keybinds 0 Fullscreen 1 Font 18/SmallcapsGlow Map View 76x50 Tactical HUD 1 Map Filters NONE Filters NONE Steam 1 RUN: c3095c90-7b27-44a8-bc32-3e4849f65a6b